bitfinex-derivatives/quotes_SOLF0:USTF0_20250818
["timestamp","ask_amount","ask_price","bid_price","bid_amount"]
[1755484910178,2.35,184.89,184.74,363.02]
[1755484910383,2.35,184.89,184.76,3.08]
[1755484910881,2.35,184.93,184.82,3.08]
[1755484911072,2.35,184.91,184.82,3.08]
[1755484911276,5.4067,184.84,184.83,3.08]
[1755484911878,5.4064,184.85,184.83,3.08]
[1755484912182,5.4064,184.85,184.84,3.05]
[1755484912379,9.30275425,184.94,184.74,363.02]
[1755484912580,2.36,184.92,184.81,3.05]
[1755484912773,2.36,184.9,184.81,3.05]
[1755484914187,5.407,184.84,184.78,5.4081]
[1755484914388,2.36,184.86,184.83,3.05]
[1755484914581,2.36,184.86,184.84,3.05]
[1755484915374,16.24,184.93,184.74,363.02]
[1755484915583,6.31467594,184.92,184.75,3.05]
[1755484915781,6.31467594,184.92,184.74,363.02]
[1755484915782,9.30275425,184.96,184.77,3.05]
[1755484916086,2.36,184.94,184.87,3.05]
[1755484916591,5.4047,184.91,184.87,3.05]
[1755484916976,5.4037,184.95,184.87,3.05]
[1755484917181,2.36,184.97,184.87,3.05]
[1755484917376,379.26,185.03,184.92,5.4041]
[1755484917591,2.36,184.99,184.87,3.05]
[1755484917981,2.36,184.99,184.91,5.4044]
[1755484918182,2.36,184.96,184.93,3.05]
[1755484918381,2.36,184.98,184.94,3.05]
[1755484918586,5.4031,184.97,184.95,3.05]
[1755484918787,2.36,184.97,184.95,3.05]
[1755484919379,5.4032,184.96,184.95,3.05]
[1755484919690,2.36,185.02,184.92,3.05]
[1755484919891,2.36,185.0,184.92,3.05]
[1755484920282,2.36,184.98,184.91,3.05]
[1755484920479,2.36,185.02,184.91,3.05]
[1755484920690,5.4019,185.01,184.95,5.4032]
[1755484920885,2.36,185.02,184.96,3.05]
[1755484921090,9.30275425,185.08,184.96,3.05]
[1755484921091,2.36,185.04,184.96,3.05]
[1755484921278,5.4013,185.03,184.98,5.4024]
[1755484921485,2.36,185.07,184.88,3.05]
[1755484921683,2.36,185.05,184.88,3.05]
[1755484921879,5.4022,185.0,184.94,5.4035]
[1755484922084,5.4022,185.0,184.95,3.05]
[1755484924192,5.4023,184.99,184.95,3.05]
[1755484924394,2.36,185.02,184.95,3.05]
[1755484924592,2.36,185.05,184.95,3.05]
[1755484925988,2.36,185.05,184.97,3.05]
[1755484926484,25.54275425,185.08,184.94,5.4035]
[1755484926691,2.36,185.06,184.88,3.05]
[1755484926889,2.36,185.04,184.88,3.05]
[1755484927090,25.54275425,185.08,184.88,3.05]
[1755484927091,5.4027,184.98,184.88,3.05]
[1755484927492,2.36,185.0,184.88,3.05]
[1755484927788,2.36,185.07,184.88,3.05]
[1755484927994,8.25241824,185.06,184.88,3.05]
[1755484928193,5.4022,185.0,184.88,3.05]
[1755484928390,2.36,185.02,184.88,3.05]
[1755484928590,150.96207482,185.11,184.88,3.05]
[1755484928591,2.36,185.0,184.88,3.05]
[1755484930196,5.4029,184.97,184.93,3.05]
[1755484930494,2.36,185.0,184.93,3.05]
[1755484930791,2.36,184.99,184.94,3.05]
[1755484930997,2.36,184.99,184.91,3.05]
[1755484931391,2.36,184.95,184.91,3.05]
[1755484931689,2.36,184.94,184.91,3.05]
[1755484931894,2.36,185.01,184.81,3.05]
[1755484932095,2.36,184.99,184.81,3.05]
[1755484932395,2.36,184.97,184.89,5.405]
[1755484932595,2.36,184.97,184.9,3.05]
[1755484933697,5.4041,184.93,184.91,3.05]
[1755484933891,2.36,184.96,184.88,5.4053]
[1755484933892,2.36,184.96,184.89,3.05]
[1755484934395,5.4044,184.92,184.89,3.05]
[1755484934591,2.36,185.0,184.81,3.05]
[1755484934795,5.4045,184.92,184.87,3.05]
[1755484935587,5.4041,184.93,184.87,3.05]
[1755484935998,5.4041,184.93,184.87,8.4558]
[1755484936197,5.4041,184.93,184.88,3.05]
[1755484936686,5.4044,184.92,184.87,5.4058]
[1755484937093,5.4044,184.92,184.9,3.05]
[1755484937294,5.4041,184.93,184.88,3.05]
[1755484937493,5.4041,184.93,184.76,151.40275425]
[1755484937494,2.36,185.0,184.89,3.05]
[1755484937699,5.4035,184.95,184.89,3.05]
[1755484938104,2.36,184.99,184.89,3.05]
[1755484938398,5.4032,184.96,184.89,3.05]
[1755484938801,2.36,184.99,184.91,3.05]
[1755484939000,2.36,184.97,184.78,3.05]
[1755484939300,2.36,184.95,184.78,3.05]
[1755484939690,2.36,184.95,184.77,62.0]
[1755484939890,2.36,184.95,184.89,3.05]
[1755484940098,2.36,184.98,184.89,3.05]
[1755484940292,5.4034,184.96,184.89,8.455]
[1755484940492,9.30275425,185.0,184.89,3.05]
[1755484940695,2.36,184.95,184.89,3.05]
[1755484940889,5.4032,184.96,184.9,5.4047]
[1755484941090,9.30275425,185.04,184.81,3.05]
[1755484941298,8.31260627,185.03,184.84,9.30275425]
[1755484941496,9.30275425,185.04,184.85,3.05]
[1755484941497,10.67260627,185.02,184.85,3.05]
[1755484941701,8.31260627,185.01,184.85,3.05]
[1755484941899,2.36,185.02,184.85,3.05]
[1755484942197,10.66873059,185.01,184.85,3.05]
[1755484942396,2.35,185.01,184.85,3.05]
[1755484942589,4.01701115,185.0,184.85,3.05]
[1755484942789,2.35,184.99,184.85,3.05]
[1755484942995,4.0162318,184.98,184.85,3.05]
[1755484943298,2.35,184.96,184.85,3.05]
[1755484943492,5.4038,184.94,184.88,5.4053]
[1755484943697,5.4038,184.94,184.89,3.11]
[1755484943997,9.30275425,185.03,184.8,3.11]
[1755484943998,5.4041,184.93,184.8,3.11]
[1755484944201,2.35,184.96,184.8,3.11]
[1755484944697,5.4039,184.94,184.89,3.11]
[1755484944901,2.35,184.98,184.89,3.11]
[1755484945107,7.7526,184.98,184.92,5.4041]
[1755484945296,2.35,185.05,184.93,3.11]
[1755484945497,2.35,185.03,184.93,3.11]
[1755484945800,5.4025,184.99,184.93,5.404]
[1755484946004,7.7525,184.99,184.94,3.11]
[1755484946298,2.35,184.99,184.96,3.11]
[1755484946603,157.17747079,185.07,184.83,363.2]
[1755484946604,9.30275425,185.03,184.93,3.11]
[1755484946799,2.35,185.01,184.93,3.11]
[1755484947103,8.37030554,185.02,184.93,3.11]
[1755484947104,2.35,184.99,184.93,3.11]
[1755484947805,151.36275425,185.07,184.93,3.11]
[1755484948005,2.35,185.01,184.93,3.11]
[1755484948599,2.35,185.01,184.94,3.11]
[1755484949402,5.4028,184.98,184.94,3.11]
[1755484949606,2.35,185.01,184.94,3.11]
[1755484949907,5.4023,184.99,184.95,3.11]
[1755484950107,5.4023,184.99,184.96,3.11]
[1755484950306,5.4023,184.99,184.97,3.11]
[1755484950699,2.35,184.98,184.94,3.11]
[1755484950905,2.35,185.02,184.84,3.11]
[1755484951210,2.35,185.0,184.84,3.11]
[1755484951409,2.35,184.98,184.9,3.11]
[1755484952010,2.35,184.98,184.91,3.11]
[1755484952518,2.35,184.95,184.92,3.11]
[1755484952809,2.35,184.94,184.92,3.11]
[1755484953214,7.754,184.94,184.92,3.11]
[1755484954416,5.404,184.94,184.93,3.11]
[1755484955414,7.754,184.94,184.89,5.4051]
[1755484955610,5.404,184.94,184.93,3.11]
[1755484955810,7.7542,184.93,184.88,3.11]
[1755484956213,5.4043,184.92,184.88,3.11]
[1755484957516,5.4047,184.91,184.89,3.11]
[1755484957716,5.4047,184.91,184.83,363.2]
[1755484957717,2.35,184.91,184.83,363.2]
[1755484958018,2.35,184.97,184.89,3.11]
[1755484958215,2.35,184.95,184.89,3.11]
[1755484958413,5.4045,184.92,184.9,3.11]
[1755484958614,5.4045,184.92,184.91,3.11]
[1755484959417,7.7545,184.92,184.91,3.11]
[1755484959820,5.405,184.9,184.89,3.11]
[1755484960023,2.35,184.92,184.84,3.11]
[1755484960421,5.4054,184.89,184.84,3.11]
[1755484960814,5.4054,184.89,184.84,5.4064]
[1755484961021,5.4054,184.89,184.85,3.11]
[1755484962425,5.4054,184.89,184.85,8.5163]
[1755484962628,5.4054,184.89,184.85,3.11]
[1755484963224,5.405,184.9,184.85,3.11]
[1755484963526,2.35,184.9,184.85,3.11]
[1755484963826,5.4052,184.89,184.85,3.11]
[1755484964414,5.4052,184.89,184.85,8.5163]
[1755484964622,5.4052,184.89,184.86,3.11]
[1755484964818,5.4052,184.89,184.87,3.11]
[1755484965024,5.4052,184.89,184.88,3.11]
[1755484965528,5.77060397,184.95,184.83,363.2]
[1755484965529,5.4058,184.88,184.83,368.6069]
[1755484965726,5.4058,184.88,184.84,3.11]
[1755484966326,5.4058,184.88,184.84,8.5166]
[1755484966627,5.4058,184.88,184.85,3.11]
[1755484967525,7.7553,184.89,184.85,3.11]
[1755484968025,7.7553,184.89,184.85,5.4063]
[1755484968226,7.7553,184.89,184.88,3.11]
[1755484968629,5.77060397,184.95,184.87,3.11]
[1755484968821,2.35,184.93,184.87,3.11]
[1755484969522,2.35,184.93,184.87,5.4057]
[1755484969722,2.35,184.93,184.89,3.11]
[1755484969923,2.35,184.92,184.89,3.11]
[1755484970125,2.35,184.92,184.9,3.11]
[1755484970324,2.35,184.9,184.87,3.11]
[1755484970528,2.35,184.9,184.88,3.11]
[1755484970928,2.35,184.89,184.85,5.4063]
[1755484971131,2.35,184.89,184.87,3.11]
[1755484971628,7.7552,184.89,184.88,3.11]
[1755484972129,7.7555,184.88,184.85,5.4063]
[1755484972324,7.7555,184.88,184.86,3.0]
[1755484972521,5.77060397,184.93,184.77,5.77060397]
[1755484972724,2.35,184.89,184.8,3.0]
[1755484972925,2.35,184.87,184.8,3.0]
[1755484973126,2.35,184.85,184.79,5.4079]
[1755484973327,2.35,184.85,184.81,3.0]
[1755484973933,5.4071,184.83,184.81,3.0]
[1755484974229,2.35,184.83,184.81,3.0]
[1755484974429,5.4068,184.84,184.82,3.0]
[1755484974631,7.7568,184.84,184.82,3.0]
[1755484975031,7.7568,184.84,184.83,3.0]
[1755484977229,5.4073,184.82,184.76,3.0]
[1755484977434,2.35,184.84,184.76,3.0]
[1755484977831,5.4072,184.83,184.76,3.0]
[1755484978137,2.35,184.84,184.76,3.0]
[1755484978337,2.35,184.84,184.8,3.0]
[1755484978539,2.35,184.83,184.79,5.4081]
[1755484978735,2.35,184.83,184.8,3.0]
[1755484978937,7.7572,184.83,184.81,3.0]
[1755484979234,5.77060397,184.9,184.81,3.0]
[1755484979432,4.06927838,184.89,184.81,3.0]
[1755484979738,7.7569,184.84,184.82,3.0]
[1755484979933,5.77060397,184.9,184.83,3.0]
[1755484980138,2.35,184.91,184.83,3.0]
[1755484980740,5.4054,184.89,184.78,5.77060397]
[1755484980941,7.7554,184.89,184.78,5.77060397]
[1755484981142,7.7554,184.89,184.88,3.0]
[1755484981935,5.4054,184.89,184.88,3.0]
[1755484982134,2.35,184.95,184.89,3.0]
[1755484982329,4.06742744,184.94,184.89,3.0]
[1755484982535,2.35,184.97,184.89,3.0]
[1755484983137,2.35,184.97,184.91,3.0]
[1755484983843,5.4031,184.96,184.91,8.4043]
[1755484984037,5.4031,184.96,184.92,3.0]
[1755484984238,2.35,184.97,184.92,3.0]
[1755484984435,5.4029,184.97,184.93,3.0]
[1755484985745,5.4033,184.96,184.93,3.0]
[1755484985940,2.35,184.99,184.93,3.0]
[1755484986147,2.35,184.99,184.94,3.0]
[1755484986347,2.35,185.01,184.94,3.0]
[1755484987045,5.402,185.0,184.96,3.0]
[1755484987442,5.4016,185.02,184.97,3.0]
[1755484987643,7.7516,185.02,184.97,3.0]
[1755484987944,5.4016,185.02,184.97,8.4028]
[1755484988151,365.53,185.06,184.98,3.0]
[1755484988351,2.35,185.07,184.98,3.0]
[1755484988546,2.35,185.07,184.96,5.77060397]
[1755484988547,5.4002,185.07,184.96,5.77060397]
[1755484988744,5.4002,185.07,185.01,3.0]
[1755484989341,2.35,185.09,184.93,8.77060397]
[1755484989546,2.35,185.09,184.94,3.0]
[1755484989949,5.4004,185.06,185.01,3.0]
[1755484990141,2.35,185.09,185.01,3.0]
[1755484990648,2.35,185.07,185.01,3.0]
[1755484991148,5.401,185.04,184.94,3.0]
[1755484991452,2.35,185.05,184.94,3.0]
[1755484991750,2.35,185.03,184.96,3.0]
[1755484992942,2.35,185.07,184.96,3.0]
[1755484993146,5.4002,185.07,185.01,5.4017]
[1755484993352,2.35,185.11,185.02,3.0]
[1755484993845,5.4006,185.05,184.99,5.402]
[1755484994047,2.35,185.07,185.04,3.0]
[1755484994243,2.35,185.06,185.04,3.0]
[1755484994855,2.35,185.09,185.01,3.0]
[1755484995553,5.4002,185.07,185.02,3.0]
[1755484995947,5.77060397,185.13,185.02,3.0]
[1755484996149,204.3624671,185.14,185.02,3.0]
[1755484996343,206.7124671,185.14,185.02,3.0]
[1755484996543,2.35,185.14,185.02,3.0]
[1755484996745,2.35,185.14,185.06,5.4]
[1755484996951,2.35,185.14,185.02,3.0]
[1755484997353,2.35,185.14,185.03,5.77060397]
[1755484997553,7.748,185.14,185.08,3.0]
[1755484997956,2.35,185.17,185.08,3.0]
[1755484999156,141.32,185.23,185.08,3.0]
[1755484999354,2.35,185.22,185.08,3.0]
[1755484999663,5.3962,185.2,185.15,3.0]
[1755484999852,7.7462,185.2,185.15,3.0]
[1755485000462,141.32,185.23,185.16,3.0]
[1755485000463,2.35,185.22,185.16,3.0]
[1755485000853,2.35,185.22,185.16,5.3972]
[1755485001054,2.35,185.22,185.17,3.0]
[1755485001260,5.3955,185.23,185.17,3.0]
[1755485002154,7.745,185.24,185.17,5.397]
[1755485002360,2.35,185.25,185.14,2.88]
[1755485002552,2.35,185.26,185.14,2.88]
[1755485003356,7.7444,185.26,185.2,5.3961]
[1755485003546,7.7444,185.26,185.21,2.88]
[1755485003751,2.35,185.26,185.21,2.88]
[1755485003953,5.3947,185.25,185.21,2.88]
[1755485004156,2.35,185.26,185.21,2.88]
[1755485004352,7.7444,185.26,185.21,2.88]
[1755485004555,141.18,185.31,185.21,2.88]
[1755485004858,5.3938,185.28,185.22,2.88]
[1755485005057,2.35,185.29,185.22,2.88]
[1755485005950,2.35,185.29,185.22,8.2755]
[1755485006156,2.35,185.29,185.23,2.88]
[1755485006561,2.35,185.27,185.24,2.88]
[1755485006854,5.3941,185.28,185.22,2.88]
[1755485007262,5.3941,185.28,185.23,2.88]
[1755485007558,2.35,185.29,185.23,2.88]
[1755485008160,5.3937,185.29,185.23,2.88]
[1755485010564,5.3937,185.29,185.23,5.3952]
[1755485010765,7.7432,185.3,185.15,2.88]
[1755485011157,141.1,185.36,185.25,2.88]
[1755485011353,2.34,185.31,185.25,2.88]
[1755485012166,141.1,185.36,185.25,2.88]
[1755485012366,2.34,185.35,185.29,2.88]
[1755485012566,5.3921,185.34,185.29,2.88]
[1755485012776,2.34,185.34,185.29,2.88]
[1755485013062,0.93920788,185.42,185.18,9.31222086]
[1755485013257,5.3923,185.34,185.18,9.31222086]
[1755485013454,2.34,185.31,185.18,9.31222086]
[1755485013659,5.3921,185.34,185.19,2.88]
[1755485013869,2.34,185.33,185.19,2.88]
[1755485014162,2.34,185.33,185.3,2.88]
[1755485014368,2.34,185.33,185.31,2.88]
[1755485014760,2.34,185.39,185.29,2.88]
[1755485015065,2.34,185.37,185.29,2.88]
[1755485015568,2.34,185.37,185.29,8.2735]
[1755485016364,5.3922,185.34,185.29,8.2735]
[1755485016668,2.34,185.32,185.3,5.3932]
[1755485016966,2.34,185.33,185.31,2.88]
[1755485018068,5.3918,185.35,185.31,2.88]
[1755485018272,7.7318,185.35,185.33,2.88]
[1755485018963,2.34,185.34,185.31,5.3929]
[1755485019276,2.34,185.33,185.31,2.88]
[1755485019569,5.3921,185.34,185.3,5.3932]
[1755485019770,2.34,185.33,185.31,2.88]
[1755485021160,9.31222086,185.41,185.28,8.2737]
[1755485021364,2.34,185.39,185.28,2.88]
[1755485021568,5.3927,185.32,185.28,2.88]
[1755485021774,7.7327,185.32,185.3,2.88]
[1755485022469,5.3929,185.31,185.3,2.88]
[1755485023973,2.34,185.34,185.31,2.88]
[1755485024280,8.20764099,185.33,185.32,2.88]
[1755485024576,7.7324,185.33,185.32,2.88]
[1755485024764,5.3924,185.33,185.32,2.88]
[1755485024969,5.3924,185.33,185.23,5.74713807]
[1755485024970,5.3918,185.35,185.23,5.74713807]
[1755485025170,5.3918,185.35,185.34,2.88]
[1755485025371,13.59918953,185.35,185.34,2.88]
[1755485025675,0.93920788,185.42,185.35,2.88]
[1755485025880,2.34,185.4,185.35,2.88]
[1755485026071,10.54729944,185.39,185.34,2.88]
[1755485026266,5.3913,185.37,185.34,2.88]
[1755485026465,2.34,185.42,185.34,2.88]
[1755485026671,8.21173192,185.41,185.36,2.88]
[1755485026871,5.3909,185.39,185.37,2.88]
[1755485027076,10.55173192,185.38,185.32,2.88]
[1755485027273,10.56314928,185.37,185.32,2.88]
[1755485027480,2.34,185.37,185.32,2.88]
[1755485027975,2.34,185.42,185.33,2.88]
[1755485028280,2.34,185.4,185.33,2.88]
[1755485028484,2.34,185.38,185.32,2.88]
[1755485028779,2.34,185.36,185.32,2.88]
[1755485028981,7.7317,185.36,185.32,2.88]
[1755485029680,5.3918,185.35,185.32,2.88]
[1755485031275,4.2077945,185.34,185.32,2.88]
[1755485031477,5.3916,185.36,185.32,2.88]
[1755485031779,2.34,185.38,185.26,5.74713807]
[1755485031780,2.34,185.34,185.26,2.88]
[1755485031972,2.34,185.32,185.26,2.88]
[1755485032173,7.7335,185.3,185.26,2.88]
[1755485032380,4.21006911,185.29,185.26,2.88]
[1755485032577,7.7335,185.3,185.14,373.5555]
[1755485032578,10.58453249,185.28,185.18,2.92]
[1755485032785,8.24453249,185.27,185.18,2.92]
[1755485033078,8.24364404,185.26,185.18,2.92]
[1755485033279,8.24364404,185.25,185.18,2.92]
[1755485033478,5.81471654,185.31,185.18,2.92]
[1755485033479,8.2466207,185.24,185.18,2.92]
[1755485033688,2.34,185.3,185.18,2.92]
[1755485033982,5.3942,185.27,185.21,5.3958]
[1755485034182,8.24583743,185.26,185.22,2.92]
[1755485034376,8.24583743,185.25,185.22,2.92]
[1755485034577,8.24583743,185.24,185.22,2.92]
[1755485034783,5.3942,185.27,185.22,2.92]
[1755485035081,8.25299576,185.26,185.22,2.92]
[1755485035280,8.25299576,185.25,185.22,8.3154]
[1755485035476,8.25299576,185.24,185.23,2.92]
[1755485035676,4.04021282,185.24,185.23,2.92]
[1755485035876,8.26007951,185.24,185.23,2.92]
[1755485036782,4.04021282,185.24,185.23,2.92]
[1755485037478,5.3955,185.23,185.14,362.76]
[1755485037679,4.04021282,185.22,185.15,2.92]
[1755485037883,4.04021282,185.21,185.15,2.92]
[1755485038082,4.04021282,185.2,185.15,2.92]
[1755485038385,7.735,185.24,185.15,2.92]
[1755485038580,8.16551105,185.23,185.15,2.92]
[1755485038880,4.05827307,185.22,185.15,2.92]
[1755485039072,4.05827307,185.21,185.15,2.92]
[1755485039372,4.05827307,185.2,185.19,2.92]
[1755485039983,7.735,185.24,185.19,2.92]
[1755485040182,8.18272155,185.23,185.19,2.92]
[1755485040376,7.735,185.24,185.19,2.92]
[1755485040377,4.06447043,185.22,185.19,2.92]
[1755485040578,4.06447043,185.21,185.14,362.76]
[1755485040781,5.81471654,185.25,185.2,2.92]
[1755485040979,8.18617596,185.24,185.2,2.92]
[1755485041186,2.34,185.22,185.2,2.92]
[1755485041379,8.18617596,185.21,185.2,2.92]
[1755485041783,9.46433624,185.21,185.2,2.92]
[1755485046995,2.34,185.2,185.09,5.74713807]
[1755485047197,2.34,185.18,185.1,2.92]
[1755485047392,5.3984,185.13,185.06,5.4]
[1755485047600,5.3984,185.13,185.12,2.92]
[1755485047889,2.34,185.2,185.12,2.92]
[1755485048094,2.34,185.18,185.12,2.92]
[1755485048286,4.0689589,185.17,185.07,5.3999]
[1755485048489,2.34,185.15,185.13,2.92]
[1755485048691,9.46396069,185.14,185.13,2.92]
[1755485049292,5.3981,185.14,185.13,2.92]
[1755485052291,5.3981,185.14,185.09,2.92]
[1755485052495,5.3981,185.14,185.09,8.3193]
[1755485052696,5.3981,185.14,185.1,2.92]
[1755485053705,5.3983,185.13,185.09,2.92]
[1755485053895,2.34,185.16,185.09,2.92]
[1755485054294,221.9053484,185.23,185.05,140.44]
[1755485054295,2.34,185.2,185.05,140.44]
[1755485054498,2.34,185.2,185.1,8.66713807]
[1755485054698,2.34,185.2,185.11,2.92]
[1755485055201,2.34,185.2,185.13,2.92]
[1755485055801,2.34,185.2,185.09,2.92]
[1755485056006,5.3974,185.16,185.09,2.92]
[1755485056306,2.34,185.15,185.09,8.3191]
[1755485056505,7.7379,185.15,185.1,2.92]
[1755485056813,2.34,185.14,185.1,2.92]
[1755485058204,2.34,185.14,185.08,2.92]
[1755485060205,7.7382,185.13,185.09,2.92]
[1755485060404,2.34,185.18,185.09,2.92]
[1755485061507,5.3974,185.16,185.11,5.3988]
[1755485061808,2.34,185.15,185.11,5.3988]
[1755485062008,2.34,185.15,185.13,2.92]
[1755485062601,5.74713807,185.19,185.13,2.92]
[1755485062809,2.35,185.14,185.12,2.96]
[1755485063507,2.35,185.18,185.1,2.96]
[1755485064102,5.74713807,185.16,185.06,5.4]
[1755485064302,2.35,185.1,185.08,2.96]
[1755485064611,2.35,185.1,185.09,2.96]
[1755485064809,5.3991,185.1,185.09,2.96]
[1755485065009,5.74713807,185.16,185.09,2.96]
[1755485065010,2.35,185.15,185.09,2.96]
[1755485065213,5.3988,185.11,185.09,2.96]
[1755485065413,5.3988,185.11,185.1,2.96]
[1755485066214,7.7488,185.11,185.1,2.96]
[1755485067811,2.35,185.11,185.04,365.52]
[1755485068016,2.35,185.11,185.0,140.32]
[1755485068209,2.35,185.11,185.0,140.34]
[1755485068405,2.35,185.11,185.01,2.96]
[1755485069514,2.35,185.1,185.04,2.96]
[1755485070218,5.4001,185.07,185.04,2.96]
[1755485070418,2.35,185.15,185.04,2.96]
[1755485070918,5.3993,185.1,185.06,5.4002]
[1755485071118,2.35,185.13,185.07,2.96]
[1755485071520,2.35,185.16,185.07,2.96]
[1755485072020,5.3981,185.14,185.09,5.3992]
[1755485072224,2.35,185.16,185.1,2.96]
[1755485072617,5.3984,185.13,185.1,2.96]
[1755485072922,5.3984,185.13,185.12,2.96]
[1755485075715,7.7484,185.13,185.12,2.96]
[1755485077824,5.3986,185.12,185.11,2.96]
[1755485080430,5.3986,185.12,185.07,2.96]
[1755485080431,5.3989,185.11,185.07,2.96]
[1755485081222,5.3991,185.1,185.07,2.96]
[1755485081423,7.7491,185.1,185.06,2.96]
[1755485081630,5.3991,185.1,185.06,2.96]
[1755485082122,5.3989,185.11,185.07,2.96]
[1755485085322,5.3989,185.11,185.06,5.4002]
[1755485085323,5.3989,185.11,185.08,2.96]
[1755485085528,7.7489,185.11,185.08,2.96]
[1755485085926,5.3991,185.1,185.08,2.96]
[1755485086125,5.74713807,185.18,185.02,5.74713807]
[1755485086126,2.35,185.17,185.09,2.96]
[1755485086325,2.35,185.15,185.09,2.96]
[1755485086526,4.04450119,185.14,185.09,2.96]
[1755485086730,11.79290119,185.13,185.09,2.96]
[1755485086931,4.04450119,185.12,185.09,2.96]
[1755485087132,7.7484,185.13,185.09,2.96]
[1755485088227,5.3985,185.12,185.09,2.96]
[1755485091228,7.7488,185.11,185.07,5.3999]
[1755485091437,7.7488,185.11,185.09,2.96]
[1755485091827,7.7488,185.11,185.1,2.96]
[1755485097542,5.3986,185.12,185.1,2.96]
[1755485097846,5.3986,185.12,185.11,3.11]
[1755485098550,5.81471654,185.2,185.11,3.11]
[1755485098843,8.58087423,185.19,185.11,3.11]
[1755485099040,5.3975,185.16,185.12,5.3984]
[1755485099240,5.3975,185.16,185.13,3.11]
[1755485100350,2.35,185.19,185.13,3.11]
[1755485100548,4.06731614,185.18,185.13,3.11]
[1755485100752,2.35,185.16,185.07,5.3999]
[1755485101041,2.35,185.14,185.08,3.11]
[1755485101244,4.06731614,185.13,185.12,5.3985]
[1755485101552,2.35,185.19,185.09,3.11]
[1755485101848,4.22472993,185.18,185.09,3.11]
[1755485102048,4.22472993,185.17,185.09,3.11]
[1755485102346,4.22472993,185.16,185.09,3.11]
[1755485102547,2.35,185.2,185.09,3.11]
[1755485102548,7.7463,185.2,185.09,3.11]
[1755485102844,4.21189592,185.19,185.11,5.74713807]
[1755485103051,211.0806484,185.23,185.18,5.3966]
[1755485103243,4.2134564,185.22,185.19,3.11]
[1755485103553,4.2134564,185.21,185.19,3.11]
[1755485103742,4.2134564,185.2,185.14,5.74713807]
[1755485104046,208.0353484,185.23,185.14,5.74713807]
[1755485104353,4.21235016,185.22,185.18,3.11]
[1755485104648,2.35,185.25,185.18,3.11]
[1755485104846,4.20845996,185.24,185.18,3.11]
[1755485105047,4.20845996,185.23,185.18,3.11]
[1755485105240,2.35,185.25,185.2,5.3961]
[1755485105547,2.35,185.29,185.18,3.11]